[Event "Titled Tuesday Blitz May 31 Late 2022"]
[White "Yurtseven, Melih"]
[Black "Gomez Ledo, Roberto Carlos"]
[WhiteFideId "6312160"]
[BlackFideId "3507076"]
[WhiteElo "2160"]
[BlackElo "2379"]
[Result "0-1"]
[Round "07"]
[TimeControl "180+1"]
[Date "2022.06.01"]
[WhiteClock "0:00:15"]
[BlackClock "0:00:07"]

1. e4 {[%clk 0:03:00]}  e5 {[%clk 0:02:59]} 2. Nf3 {[%clk 0:03:00]}  Nc6 {[%clk 0:02:59]} 3. d4 {[%clk 0:02:59]}  exd4 {[%clk 0:02:59]} 4. Nxd4 {[%clk 0:03:00]}  Bc5 {[%clk 0:02:58]} 5. Nxc6 {[%clk 0:03:00]}  Qf6 {[%clk 0:02:57]} 6. Qf3 {[%clk 0:03:00]}  Qxc6 {[%clk 0:02:51]} 7. Nc3 {[%clk 0:02:56]}  Ne7 {[%clk 0:02:39]} 8. Bg5 {[%clk 0:02:41]}  O-O {[%clk 0:02:33]} 9. O-O-O {[%clk 0:02:37]}  Ng6 {[%clk 0:02:28]} 10. Bb5 {[%clk 0:02:32]}  Qb6 {[%clk 0:02:23]} 11. Qe2 {[%clk 0:02:29]}  d6 {[%clk 0:02:00]} 12. a3 {[%clk 0:02:20]}  c6 {[%clk 0:01:56]} 13. Bc4 {[%clk 0:02:19]}  Qa5 {[%clk 0:01:48]} 14. Bd2 {[%clk 0:02:15]}  Qc7 {[%clk 0:01:43]} 15. h4 {[%clk 0:02:13]}  b5 {[%clk 0:01:39]} 16. Ba2 {[%clk 0:02:08]}  b4 {[%clk 0:01:31]} 17. axb4 {[%clk 0:02:08]}  Bxb4 {[%clk 0:01:31]} 18. h5 {[%clk 0:02:05]}  Ne5 {[%clk 0:01:31]} 19. h6 {[%clk 0:02:02]}  g6 {[%clk 0:01:31]} 20. Kb1 {[%clk 0:01:46]}  Qa5 {[%clk 0:01:27]} 21. Bb3 {[%clk 0:01:39]}  Be6 {[%clk 0:01:25]} 22. f4 {[%clk 0:01:31]}  Nd7 {[%clk 0:01:08]} 23. Na4 {[%clk 0:01:15]}  Rab8 {[%clk 0:00:53]} 24. Bxb4 {[%clk 0:00:54]}  Qxb4 {[%clk 0:00:52]} 25. Qd2 {[%clk 0:00:54]}  Bxb3 {[%clk 0:00:37]} 26. Qxb4 {[%clk 0:00:54]}  Bxc2+ {[%clk 0:00:37]} 27. Kxc2 {[%clk 0:00:55]}  Rxb4 {[%clk 0:00:37]} 28. b3 {[%clk 0:00:46]}  Nc5 {[%clk 0:00:26]} 29. Nxc5 {[%clk 0:00:43]}  dxc5 {[%clk 0:00:27]} 30. Rhe1 {[%clk 0:00:42]}  Rfb8 {[%clk 0:00:24]} 31. Rd3 {[%clk 0:00:21]}  c4 {[%clk 0:00:24]} 32. bxc4 {[%clk 0:00:22]}  Rxc4+ {[%clk 0:00:25]} 33. Rc3 {[%clk 0:00:20]}  Rxc3+ {[%clk 0:00:24]} 34. Kxc3 {[%clk 0:00:20]}  Kf8 {[%clk 0:00:24]} 35. g4 {[%clk 0:00:20]}  Ke7 {[%clk 0:00:24]} 36. g5 {[%clk 0:00:21]}  a5 {[%clk 0:00:19]} 37. Ra1 {[%clk 0:00:20]}  Rb5 {[%clk 0:00:19]} 38. Kc4 {[%clk 0:00:21]}  Kd6 {[%clk 0:00:18]} 39. Rd1+ {[%clk 0:00:19]}  Kc7 {[%clk 0:00:18]} 40. Rf1 {[%clk 0:00:16]}  Kb6 {[%clk 0:00:15]} 41. f5 {[%clk 0:00:17]}  Rb4+ {[%clk 0:00:11]} 42. Kd3 {[%clk 0:00:16]}  Rb3+ {[%clk 0:00:11]} 43. Kd4 {[%clk 0:00:16]}  Rg3 {[%clk 0:00:11]} 44. Ke5 {[%clk 0:00:13]}  Rxg5 {[%clk 0:00:10]} 45. Kf6 {[%clk 0:00:14]}  Rh5 {[%clk 0:00:10]} 46. Kxf7 {[%clk 0:00:14]}  gxf5 {[%clk 0:00:08]} 47. exf5 {[%clk 0:00:15]}  Rxh6 {[%clk 0:00:08]} 48. f6 {[%clk 0:00:15]}  a4 {[%clk 0:00:08]} 49. Ke7 {[%clk 0:00:14]}  Rxf6 {[%clk 0:00:05]} 50. Kxf6 {[%clk 0:00:15]}  Kb5 {[%clk 0:00:04]} 51. Ke5 {[%clk 0:00:16]}  c5 {[%clk 0:00:04]} 52. Ke4 {[%clk 0:00:15]}  Kc4 {[%clk 0:00:03]} 53. Rc1+ {[%clk 0:00:15]}  Kb3 {[%clk 0:00:03]} 54. Kd3 {[%clk 0:00:14]}  a3 {[%clk 0:00:03]} 55. Rc3+ {[%clk 0:00:15]}  Kb2 {[%clk 0:00:03]} 56. Rc2+ {[%clk 0:00:15]}  Kb1 {[%clk 0:00:03]} 57. Kc3 {[%clk 0:00:12]}  a2 {[%clk 0:00:03]} 58. Rb2+ {[%clk 0:00:12]}  Ka1 {[%clk 0:00:02]} 59. Kb3 {[%clk 0:00:11]}  c4+ {[%clk 0:00:01]} 60. Ka3 {[%clk 0:00:09]}  c3 {[%clk 0:00:01]} 61. Rxa2+ {[%clk 0:00:09]}  Kb1 {[%clk 0:00:02]} 62. Rh2 {[%clk 0:00:10]}  c2 {[%clk 0:00:02]} 63. Rxh7 {[%clk 0:00:08]}  c1=Q+ {[%clk 0:00:03]} 64. Kb4 {[%clk 0:00:07]}  Qd2+ {[%clk 0:00:03]} 65. Kc5 {[%clk 0:00:07]}  Qg5+ {[%clk 0:00:02]} 66. Kd6 {[%clk 0:00:08]}  Qg6+ {[%clk 0:00:03]} 67. Ke7 {[%clk 0:00:07]}  Qxh7+ {[%clk 0:00:03]} 68. Kf8 {[%clk 0:00:08]}  Qe4 {[%clk 0:00:04]} 69. Kg7 {[%clk 0:00:09]}  Qd5 {[%clk 0:00:04]} 70. Kh8 {[%clk 0:00:10]}  Qb7 {[%clk 0:00:04]} 71. Kg8 {[%clk 0:00:11]}  Kc2 {[%clk 0:00:05]} 72. Kh8 {[%clk 0:00:11]}  Kd3 {[%clk 0:00:06]} 73. Kg8 {[%clk 0:00:12]}  Ke4 {[%clk 0:00:06]} 74. Kh8 {[%clk 0:00:13]}  Kf5 {[%clk 0:00:07]} 75. Kg8 {[%clk 0:00:14]}  Kg6 {[%clk 0:00:08]} 76. Kh8 {[%clk 0:00:15]}  Qg7# {[%clk 0:00:07]} 0-1


[Site "https://www.chess.com"]

[Event "Titled Tuesday Blitz May 31 Late 2022"]
[White "Zeynalli, Rashad"]
[Black "Ladan, Nicholas"]
[WhiteFideId "13403320"]
[BlackFideId "30918855"]
[WhiteElo "2125"]
[BlackElo "2167"]
[Result "0-1"]
[Round "07"]
[TimeControl "180+1"]
[Date "2022.06.01"]
[WhiteClock "0:00:13"]
[BlackClock "0:00:05"]

1. d4 {[%clk 0:03:00]}  d5 {[%clk 0:03:00]} 2. Bf4 {[%clk 0:02:59]}  Nf6 {[%clk 0:03:00]} 3. e3 {[%clk 0:02:58]}  c5 {[%clk 0:03:00]} 4. c3 {[%clk 0:02:58]}  Nc6 {[%clk 0:03:00]} 5. Nd2 {[%clk 0:02:58]}  Bf5 {[%clk 0:02:54]} 6. Qb3 {[%clk 0:02:58]}  Qb6 {[%clk 0:02:52]} 7. dxc5 {[%clk 0:02:57]}  Qxb3 {[%clk 0:02:48]} 8. axb3 {[%clk 0:02:58]}  e5 {[%clk 0:02:48]} 9. Bg3 {[%clk 0:02:58]}  Bxc5 {[%clk 0:02:44]} 10. Ngf3 {[%clk 0:02:59]}  Nd7 {[%clk 0:02:40]} 11. b4 {[%clk 0:02:56]}  Bd6 {[%clk 0:02:40]} 12. Nd4 {[%clk 0:02:57]}  Nxd4 {[%clk 0:02:35]} 13. exd4 {[%clk 0:02:56]}  Ke7 {[%clk 0:02:33]} 14. dxe5 {[%clk 0:02:50]}  Nxe5 {[%clk 0:02:32]} 15. Nb3 {[%clk 0:02:39]}  Rhe8 {[%clk 0:02:24]} 16. O-O-O {[%clk 0:02:33]}  Be6 {[%clk 0:02:12]} 17. Bb5 {[%clk 0:02:32]}  Nd7 {[%clk 0:01:59]} 18. Rhe1 {[%clk 0:02:15]}  Bxg3 {[%clk 0:01:57]} 19. hxg3 {[%clk 0:02:15]}  a6 {[%clk 0:01:57]} 20. Bxd7 {[%clk 0:02:10]}  Kxd7 {[%clk 0:01:58]} 21. Nc5+ {[%clk 0:02:10]}  Kc6 {[%clk 0:01:57]} 22. Re5 {[%clk 0:02:07]}  b6 {[%clk 0:01:47]} 23. Nb3 {[%clk 0:02:07]}  f6 {[%clk 0:01:44]} 24. Re3 {[%clk 0:02:03]}  Rad8 {[%clk 0:01:37]} 25. Nd4+ {[%clk 0:01:58]}  Kd6 {[%clk 0:01:37]} 26. Rde1 {[%clk 0:01:58]}  Bd7 {[%clk 0:01:30]} 27. Rxe8 {[%clk 0:01:58]}  Rxe8 {[%clk 0:01:30]} 28. Nf5+ {[%clk 0:01:54]}  Kc6 {[%clk 0:01:18]} 29. Rxe8 {[%clk 0:01:55]}  Bxe8 {[%clk 0:01:18]} 30. Nxg7 {[%clk 0:01:55]}  Bg6 {[%clk 0:01:07]} 31. Ne6 {[%clk 0:01:54]}  a5 {[%clk 0:00:59]} 32. Nd4+ {[%clk 0:01:51]}  Kd6 {[%clk 0:00:58]} 33. bxa5 {[%clk 0:01:50]}  bxa5 {[%clk 0:00:59]} 34. Kd2 {[%clk 0:01:49]}  Kc5 {[%clk 0:00:59]} 35. b3 {[%clk 0:01:47]}  Be8 {[%clk 0:00:56]} 36. Ne6+ {[%clk 0:01:45]}  Kd6 {[%clk 0:00:54]} 37. Ng7 {[%clk 0:01:43]}  Bg6 {[%clk 0:00:52]} 38. g4 {[%clk 0:01:40]}  Ke5 {[%clk 0:00:48]} 39. Ke3 {[%clk 0:01:39]}  Bc2 {[%clk 0:00:47]} 40. f4+ {[%clk 0:01:34]}  Kd6 {[%clk 0:00:45]} 41. Nf5+ {[%clk 0:01:32]}  Bxf5 {[%clk 0:00:28]} 42. gxf5 {[%clk 0:01:33]}  h5 {[%clk 0:00:28]} 43. g3 {[%clk 0:01:18]}  Kc5 {[%clk 0:00:24]} 44. Kd3 {[%clk 0:01:18]}  Kc6 {[%clk 0:00:23]} 45. Kd4 {[%clk 0:00:58]}  Kd6 {[%clk 0:00:24]} 46. Kd3 {[%clk 0:00:36]}  Kc5 {[%clk 0:00:24]} 47. Ke3 {[%clk 0:00:36]}  Kc6 {[%clk 0:00:24]} 48. Kd2 {[%clk 0:00:35]}  Kc5 {[%clk 0:00:22]} 49. Kd3 {[%clk 0:00:30]}  Kc6 {[%clk 0:00:22]} 50. b4 {[%clk 0:00:29]}  a4 {[%clk 0:00:18]} 51. Kc2 {[%clk 0:00:28]}  Kb5 {[%clk 0:00:17]} 52. Kb2 {[%clk 0:00:27]}  d4 {[%clk 0:00:17]} 53. cxd4 {[%clk 0:00:25]}  Kxb4 {[%clk 0:00:17]} 54. Ka2 {[%clk 0:00:25]}  Kc4 {[%clk 0:00:17]} 55. Ka3 {[%clk 0:00:25]}  Kxd4 {[%clk 0:00:18]} 56. Kxa4 {[%clk 0:00:26]}  Ke3 {[%clk 0:00:18]} 57. Kb5 {[%clk 0:00:27]}  Kf3 {[%clk 0:00:19]} 58. Kc5 {[%clk 0:00:28]}  Kxg3 {[%clk 0:00:20]} 59. Kd5 {[%clk 0:00:28]}  h4 {[%clk 0:00:20]} 60. Ke6 {[%clk 0:00:28]}  h3 {[%clk 0:00:21]} 61. Kxf6 {[%clk 0:00:29]}  h2 {[%clk 0:00:22]} 62. Kg7 {[%clk 0:00:29]}  h1=Q {[%clk 0:00:23]} 63. f6 {[%clk 0:00:29]}  Kxf4 {[%clk 0:00:20]} 64. f7 {[%clk 0:00:29]}  Qg2+ {[%clk 0:00:21]} 65. Kh8 {[%clk 0:00:28]}  Qh3+ {[%clk 0:00:21]} 66. Kg8 {[%clk 0:00:28]}  Qg4+ {[%clk 0:00:21]} 67. Kh8 {[%clk 0:00:28]}  Qh5+ {[%clk 0:00:21]} 68. Kg8 {[%clk 0:00:28]}  Qg6+ {[%clk 0:00:21]} 69. Kh8 {[%clk 0:00:28]}  Qh6+ {[%clk 0:00:21]} 70. Kg8 {[%clk 0:00:28]}  Qe6 {[%clk 0:00:21]} 71. Kh8 {[%clk 0:00:28]}  Qc8+ {[%clk 0:00:19]} 72. Kg7 {[%clk 0:00:27]}  Qd7 {[%clk 0:00:19]} 73. Kg8 {[%clk 0:00:27]}  Kg5 {[%clk 0:00:17]} 74. Kh8 {[%clk 0:00:19]}  Qe7 {[%clk 0:00:12]} 75. Kg7 {[%clk 0:00:16]}  Qf6+ {[%clk 0:00:09]} 76. Kg8 {[%clk 0:00:15]}  Qg6+ {[%clk 0:00:06]} 77. Kh8 {[%clk 0:00:15]}  Qh6+ {[%clk 0:00:06]} 78. Kg8 {[%clk 0:00:15]}  Kg6 {[%clk 0:00:05]} 79. f8=Q {[%clk 0:00:13]}  Qh7# {[%clk 0:00:05]} 0-1


[Site "https://www.chess.com"]

[Event "Titled Tuesday Blitz May 31 Late 2022"]
[White "Bortnyk, Olexandr"]
[Black "Matlakov, Maxim"]
[WhiteFideId "14120828"]
[BlackFideId "4168003"]
[WhiteElo "2723"]
[BlackElo "2669"]
[Result "1-0"]
[Round "08"]
[TimeControl "180+1"]
[Date "2022.05.31"]
[WhiteClock "0:00:03"]
[BlackClock "0:00:02"]

1. d4 {[%clk 0:03:00]}  d5 {[%clk 0:02:59]} 2. Nc3 {[%clk 0:03:01]}  Nf6 {[%clk 0:02:59]} 3. Bf4 {[%clk 0:03:02]}  e6 {[%clk 0:02:57]} 4. Nb5 {[%clk 0:03:01]}  Na6 {[%clk 0:02:57]} 5. e3 {[%clk 0:03:01]}  Be7 {[%clk 0:02:56]} 6. Nf3 {[%clk 0:03:01]}  O-O {[%clk 0:02:56]} 7. Ne5 {[%clk 0:03:02]}  c6 {[%clk 0:02:46]} 8. Nc3 {[%clk 0:03:02]}  Qb6 {[%clk 0:02:45]} 9. Rb1 {[%clk 0:02:50]}  c5 {[%clk 0:02:45]} 10. Be2 {[%clk 0:02:45]}  Nb4 {[%clk 0:02:42]} 11. Na4 {[%clk 0:02:36]}  Qa5 {[%clk 0:02:30]} 12. c3 {[%clk 0:02:36]}  Na6 {[%clk 0:02:07]} 13. Nxc5 {[%clk 0:02:27]}  Nxc5 {[%clk 0:02:00]} 14. b4 {[%clk 0:02:23]}  Qa3 {[%clk 0:02:00]} 15. bxc5 {[%clk 0:02:23]}  Qxc3+ {[%clk 0:02:00]} 16. Kf1 {[%clk 0:02:05]}  Ne4 {[%clk 0:01:59]} 17. Rc1 {[%clk 0:02:05]}  Qa3 {[%clk 0:01:50]} 18. Qc2 {[%clk 0:01:24]}  f6 {[%clk 0:01:42]} 19. Nd3 {[%clk 0:01:24]}  Bd7 {[%clk 0:00:56]} 20. f3 {[%clk 0:01:16]}  Ng5 {[%clk 0:00:56]} 21. Qb3 {[%clk 0:00:58]}  Qxb3 {[%clk 0:00:43]} 22. axb3 {[%clk 0:00:59]}  Nf7 {[%clk 0:00:43]} 23. Kf2 {[%clk 0:00:56]}  Bb5 {[%clk 0:00:43]} 24. g4 {[%clk 0:00:46]}  Nd8 {[%clk 0:00:40]} 25. Bd6 {[%clk 0:00:39]}  Nc6 {[%clk 0:00:27]} 26. Bxe7 {[%clk 0:00:23]}  Nxe7 {[%clk 0:00:27]} 27. Nf4 {[%clk 0:00:21]}  Bxe2 {[%clk 0:00:23]} 28. Kxe2 {[%clk 0:00:22]}  Kf7 {[%clk 0:00:24]} 29. Kd2 {[%clk 0:00:19]}  Nc6 {[%clk 0:00:23]} 30. Kc3 {[%clk 0:00:19]}  g5 {[%clk 0:00:19]} 31. Nd3 {[%clk 0:00:17]}  h5 {[%clk 0:00:19]} 32. gxh5 {[%clk 0:00:17]}  Rh8 {[%clk 0:00:19]} 33. h4 {[%clk 0:00:17]}  Rag8 {[%clk 0:00:15]} 34. hxg5 {[%clk 0:00:18]}  Rxg5 {[%clk 0:00:15]} 35. Nf4 {[%clk 0:00:16]}  e5 {[%clk 0:00:15]} 36. dxe5 {[%clk 0:00:17]}  Rxe5 {[%clk 0:00:13]} 37. Kd2 {[%clk 0:00:09]}  Rf5 {[%clk 0:00:12]} 38. h6 {[%clk 0:00:03]}  d4 {[%clk 0:00:12]} 39. h7 {[%clk 0:00:03]}  Ne5 {[%clk 0:00:08]} 40. Rh3 {[%clk 0:00:03]}  dxe3+ {[%clk 0:00:04]} 41. Kxe3 {[%clk 0:00:04]}  Nd7 {[%clk 0:00:03]} 42. b4 {[%clk 0:00:02]}  Nf8 {[%clk 0:00:03]} 43. Rch1 {[%clk 0:00:01]}  Re5+ {[%clk 0:00:04]} 44. Kd4 {[%clk 0:00:01]}  Rf5 {[%clk 0:00:03]} 45. Nd3 {[%clk 0:00:02]}  Ne6+ {[%clk 0:00:03]} 46. Kc4 {[%clk 0:00:02]}  Ng5 {[%clk 0:00:03]} 47. Rh5 {[%clk 0:00:02]}  Rxf3 {[%clk 0:00:03]} 48. Rxg5 {[%clk 0:00:03]}  Rxd3 {[%clk 0:00:02]} 49. Rg8 {[%clk 0:00:03]} 1-0


[Site "https://www.chess.com"]

[Event "Titled Tuesday Blitz May 31 Late 2022"]
[White "Chigaev, Maksim"]
[Black "Koellner, Ruben Gideon"]
[WhiteFideId "4108116"]
[BlackFideId "12993093"]
[WhiteElo "2457"]
[BlackElo "2593"]
[Result "1-0"]
[Round "08"]
[TimeControl "180+1"]
[Date "2022.05.31"]
[WhiteClock "0:01:23"]
[BlackClock "0:00:03"]

1. d4 {[%clk 0:03:00]}  d6 {[%clk 0:03:00]} 2. e4 {[%clk 0:02:58]}  Nf6 {[%clk 0:03:00]} 3. Nc3 {[%clk 0:02:59]}  e5 {[%clk 0:03:00]} 4. Nf3 {[%clk 0:02:59]}  Nbd7 {[%clk 0:02:58]} 5. Rg1 {[%clk 0:02:59]}  c6 {[%clk 0:02:57]} 6. g4 {[%clk 0:02:59]}  h6 {[%clk 0:02:58]} 7. h4 {[%clk 0:02:58]}  exd4 {[%clk 0:02:58]} 8. Nxd4 {[%clk 0:02:58]}  Ne5 {[%clk 0:02:58]} 9. g5 {[%clk 0:02:56]}  hxg5 {[%clk 0:02:58]} 10. Bxg5 {[%clk 0:02:56]}  Qb6 {[%clk 0:02:51]} 11. Nb3 {[%clk 0:02:41]}  Nfg4 {[%clk 0:02:30]} 12. Rg2 {[%clk 0:02:38]}  f6 {[%clk 0:02:14]} 13. Bf4 {[%clk 0:02:33]}  Rxh4 {[%clk 0:02:10]} 14. Qe2 {[%clk 0:02:33]}  Nh6 {[%clk 0:01:38]} 15. Bxe5 {[%clk 0:02:23]}  dxe5 {[%clk 0:01:33]} 16. O-O-O {[%clk 0:02:23]}  Be6 {[%clk 0:01:11]} 17. Qf3 {[%clk 0:02:14]}  Rf4 {[%clk 0:00:54]} 18. Qh5+ {[%clk 0:02:06]}  Bf7 {[%clk 0:00:53]} 19. Qh3 {[%clk 0:02:06]}  Rd8 {[%clk 0:00:50]} 20. Bd3 {[%clk 0:01:54]}  Rxf2 {[%clk 0:00:46]} 21. Rgg1 {[%clk 0:01:54]}  Rf4 {[%clk 0:00:36]} 22. Kb1 {[%clk 0:01:51]}  a5 {[%clk 0:00:34]} 23. a4 {[%clk 0:01:51]}  Bxb3 {[%clk 0:00:31]} 24. cxb3 {[%clk 0:01:52]}  Qxb3 {[%clk 0:00:30]} 25. Bc2 {[%clk 0:01:42]}  Qf7 {[%clk 0:00:25]} 26. Ne2 {[%clk 0:01:28]}  Rf2 {[%clk 0:00:23]} 27. Bb3 {[%clk 0:01:27]}  Qe7 {[%clk 0:00:05]} 28. Qh5+ {[%clk 0:01:27]}  g6 {[%clk 0:00:03]} 29. Qxg6+ {[%clk 0:01:24]}  Nf7 {[%clk 0:00:04]} 30. Bxf7+ {[%clk 0:01:23]}  Qxf7 {[%clk 0:00:03]} 31. Rxd8+ {[%clk 0:01:24]}  Kxd8 {[%clk 0:00:03]} 32. Qxf7 {[%clk 0:01:24]}  Rxe2 {[%clk 0:00:03]} 33. Rg8 {[%clk 0:01:23]} 1-0


[Site "https://www.chess.com"]

[Event "Titled Tuesday Blitz May 31 Late 2022"]
[White "D`Arruda, Ricardo D."]
[Black "Karttunen, Mika"]
[WhiteFideId "100692"]
[BlackFideId "502081"]
[WhiteElo "2450"]
[BlackElo "2343"]
[Result "0-1"]
[Round "08"]
[TimeControl "180+1"]
[Date "2022.06.01"]
[WhiteClock "0:00:11"]
[BlackClock "0:00:08"]

1. Nf3 {[%clk 0:02:55]}  Nf6 {[%clk 0:02:59]} 2. d4 {[%clk 0:02:55]}  d5 {[%clk 0:02:58]} 3. Nc3 {[%clk 0:02:54]}  c5 {[%clk 0:02:55]} 4. e3 {[%clk 0:02:54]}  Nc6 {[%clk 0:02:55]} 5. Bd3 {[%clk 0:02:51]}  Bg4 {[%clk 0:02:54]} 6. dxc5 {[%clk 0:02:36]}  e5 {[%clk 0:02:44]} 7. e4 {[%clk 0:02:36]}  d4 {[%clk 0:02:33]} 8. Ne2 {[%clk 0:02:28]}  Bxf3 {[%clk 0:02:32]} 9. gxf3 {[%clk 0:02:29]}  Bxc5 {[%clk 0:02:31]} 10. Ng3 {[%clk 0:02:23]}  g6 {[%clk 0:02:25]} 11. f4 {[%clk 0:02:22]}  h5 {[%clk 0:02:21]} 12. fxe5 {[%clk 0:02:09]}  Nxe5 {[%clk 0:02:21]} 13. Bg5 {[%clk 0:01:55]}  Be7 {[%clk 0:02:14]} 14. Bb5+ {[%clk 0:01:45]}  Nc6 {[%clk 0:02:14]} 15. O-O {[%clk 0:01:43]}  Ng4 {[%clk 0:02:03]} 16. Bxe7 {[%clk 0:01:36]}  Kxe7 {[%clk 0:02:03]} 17. h3 {[%clk 0:01:36]}  Nf6 {[%clk 0:01:22]} 18. Bxc6 {[%clk 0:01:31]}  bxc6 {[%clk 0:01:22]} 19. e5 {[%clk 0:01:30]}  Nd5 {[%clk 0:01:22]} 20. Qxd4 {[%clk 0:01:28]}  h4 {[%clk 0:01:14]} 21. Ne4 {[%clk 0:01:28]}  Rh5 {[%clk 0:01:13]} 22. f4 {[%clk 0:01:11]}  Qb6 {[%clk 0:01:12]} 23. Qxb6 {[%clk 0:01:10]}  axb6 {[%clk 0:01:12]} 24. Rf3 {[%clk 0:01:08]}  Rf5 {[%clk 0:01:11]} 25. Raf1 {[%clk 0:00:38]}  Ra4 {[%clk 0:01:11]} 26. Nd6 {[%clk 0:00:38]}  Rh5 {[%clk 0:01:11]} 27. a3 {[%clk 0:00:32]}  Rd4 {[%clk 0:00:57]} 28. c4 {[%clk 0:00:31]}  Nc7 {[%clk 0:00:49]} 29. Nc8+ {[%clk 0:00:31]}  Ke6 {[%clk 0:00:47]} 30. Nxb6 {[%clk 0:00:32]}  Kf5 {[%clk 0:00:39]} 31. b4 {[%clk 0:00:32]}  Ne6 {[%clk 0:00:38]} 32. Nc8 {[%clk 0:00:30]}  Nc7 {[%clk 0:00:23]} 33. Ne7+ {[%clk 0:00:28]}  Ke6 {[%clk 0:00:24]} 34. Nxc6 {[%clk 0:00:28]}  Rxc4 {[%clk 0:00:24]} 35. Nd8+ {[%clk 0:00:27]}  Ke7 {[%clk 0:00:24]} 36. Nb7 {[%clk 0:00:27]}  Ne6 {[%clk 0:00:23]} 37. Nd6 {[%clk 0:00:26]}  Rc2 {[%clk 0:00:23]} 38. b5 {[%clk 0:00:24]}  Rh8 {[%clk 0:00:19]} 39. b6 {[%clk 0:00:23]}  Rb2 {[%clk 0:00:17]} 40. b7 {[%clk 0:00:23]}  Nc5 {[%clk 0:00:17]} 41. Rc1 {[%clk 0:00:20]}  Rb5 {[%clk 0:00:11]} 42. Rxc5 {[%clk 0:00:18]}  Rxc5 {[%clk 0:00:10]} 43. Rb3 {[%clk 0:00:18]}  Rb8 {[%clk 0:00:09]} 44. Nc8+ {[%clk 0:00:18]}  Kd7 {[%clk 0:00:10]} 45. Nd6 {[%clk 0:00:18]}  Kc7 {[%clk 0:00:09]} 46. Nxf7 {[%clk 0:00:17]}  Rxb7 {[%clk 0:00:09]} 47. Rxb7+ {[%clk 0:00:17]}  Kxb7 {[%clk 0:00:10]} 48. Nh8 {[%clk 0:00:17]}  Rc3 {[%clk 0:00:10]} 49. Nxg6 {[%clk 0:00:17]}  Rg3+ {[%clk 0:00:10]} 50. Kf2 {[%clk 0:00:15]}  Rxg6 {[%clk 0:00:11]} 51. Kf3 {[%clk 0:00:15]}  Rg3+ {[%clk 0:00:11]} 52. Ke4 {[%clk 0:00:15]}  Rxh3 {[%clk 0:00:12]} 53. e6 {[%clk 0:00:14]}  Kc7 {[%clk 0:00:11]} 54. f5 {[%clk 0:00:14]}  Rh1 {[%clk 0:00:11]} 55. Kf3 {[%clk 0:00:13]}  Kd6 {[%clk 0:00:10]} 56. Kg4 {[%clk 0:00:12]}  Rf1 {[%clk 0:00:08]} 57. a4 {[%clk 0:00:12]}  Ke7 {[%clk 0:00:07]} 58. a5 {[%clk 0:00:12]}  Kf6 {[%clk 0:00:08]} 59. a6 {[%clk 0:00:11]}  Ra1 {[%clk 0:00:08]} 0-1


[Site "https://www.chess.com"]

[Event "Titled Tuesday Blitz May 31 Late 2022"]
[White "Eynullayev, Atilla"]
[Black "Paravyan, David"]
[WhiteFideId "13413570"]
[BlackFideId "4194985"]
[WhiteElo "1936"]
[BlackElo "2569"]
[Result "0-1"]
[Round "08"]
[TimeControl "180+1"]
[Date "2022.05.31"]
[WhiteClock "0:00:14"]
[BlackClock "0:02:16"]

1. e4 {[%clk 0:03:00]}  e5 {[%clk 0:02:57]} 2. Nf3 {[%clk 0:03:01]}  Nc6 {[%clk 0:02:57]} 3. Bb5 {[%clk 0:03:01]}  f5 {[%clk 0:02:57]} 4. Nc3 {[%clk 0:03:00]}  fxe4 {[%clk 0:02:57]} 5. Nxe4 {[%clk 0:03:00]}  Nf6 {[%clk 0:02:57]} 6. Nxf6+ {[%clk 0:02:58]}  Qxf6 {[%clk 0:02:56]} 7. Qe2 {[%clk 0:02:59]}  Be7 {[%clk 0:02:55]} 8. Bxc6 {[%clk 0:02:59]}  dxc6 {[%clk 0:02:56]} 9. Nxe5 {[%clk 0:03:00]}  O-O {[%clk 0:02:53]} 10. O-O {[%clk 0:02:59]}  Bf5 {[%clk 0:02:47]} 11. d4 {[%clk 0:02:52]}  Rae8 {[%clk 0:02:47]} 12. c3 {[%clk 0:02:31]}  c5 {[%clk 0:02:44]} 13. Be3 {[%clk 0:02:26]}  Bd6 {[%clk 0:02:37]} 14. Qb5 {[%clk 0:02:11]}  Bxe5 {[%clk 0:02:29]} 15. dxe5 {[%clk 0:02:10]}  Rxe5 {[%clk 0:02:30]} 16. Qxb7 {[%clk 0:02:00]}  Be4 {[%clk 0:02:30]} 17. Qxc7 {[%clk 0:01:14]}  Bxg2 {[%clk 0:02:28]} 18. Kxg2 {[%clk 0:01:14]}  Qf3+ {[%clk 0:02:28]} 19. Kg1 {[%clk 0:01:14]}  Re6 {[%clk 0:02:22]} 20. Qg3 {[%clk 0:01:14]}  Rg6 {[%clk 0:02:22]} 21. Rae1 {[%clk 0:01:15]}  Rff6 {[%clk 0:02:19]} 22. Bxc5 {[%clk 0:01:10]}  h5 {[%clk 0:02:18]} 23. Re3 {[%clk 0:00:21]}  Qd5 {[%clk 0:02:18]} 24. Re8+ {[%clk 0:00:13]}  Kh7 {[%clk 0:02:17]} 25. Re5 {[%clk 0:00:14]}  Qxe5 {[%clk 0:02:16]} 0-1


[Site "https://www.chess.com"]

[Event "Titled Tuesday Blitz May 31 Late 2022"]
[White "Ezat, Mohamed"]
[Black "Blackman, Justin"]
[WhiteFideId "10600906"]
[BlackFideId "11100516"]
[WhiteElo "2386"]
[BlackElo "2112"]
[Result "0-1"]
[Round "08"]
[TimeControl "180+1"]
[Date "2022.06.01"]
[WhiteClock "0:00:04"]
[BlackClock "0:00:12"]

1. e4 {[%clk 0:03:00]}  e5 {[%clk 0:02:43]} 2. Nf3 {[%clk 0:02:59]}  Nc6 {[%clk 0:02:43]} 3. Bb5 {[%clk 0:02:59]}  Nge7 {[%clk 0:02:43]} 4. O-O {[%clk 0:02:56]}  g6 {[%clk 0:02:41]} 5. d4 {[%clk 0:02:54]}  exd4 {[%clk 0:02:42]} 6. c3 {[%clk 0:02:52]}  d3 {[%clk 0:02:37]} 7. Bg5 {[%clk 0:02:50]}  Bg7 {[%clk 0:02:36]} 8. Qxd3 {[%clk 0:02:46]}  h6 {[%clk 0:02:34]} 9. Bh4 {[%clk 0:02:45]}  O-O {[%clk 0:02:34]} 10. Bxc6 {[%clk 0:02:44]}  bxc6 {[%clk 0:02:33]} 11. e5 {[%clk 0:02:41]}  d5 {[%clk 0:02:23]} 12. exd6 {[%clk 0:02:37]}  cxd6 {[%clk 0:02:22]} 13. Re1 {[%clk 0:02:37]}  Re8 {[%clk 0:02:18]} 14. Nbd2 {[%clk 0:02:30]}  Bf5 {[%clk 0:02:18]} 15. Qc4 {[%clk 0:02:29]}  g5 {[%clk 0:02:03]} 16. Bg3 {[%clk 0:02:27]}  d5 {[%clk 0:02:02]} 17. Qc5 {[%clk 0:02:26]}  f6 {[%clk 0:01:48]} 18. Nb3 {[%clk 0:02:21]}  Qd7 {[%clk 0:01:44]} 19. Nbd4 {[%clk 0:02:17]}  Be4 {[%clk 0:01:42]} 20. Nd2 {[%clk 0:02:16]}  Bg6 {[%clk 0:01:40]} 21. Ne6 {[%clk 0:02:13]}  Nf5 {[%clk 0:01:37]} 22. Nxg7 {[%clk 0:02:07]}  Kxg7 {[%clk 0:01:38]} 23. Nf3 {[%clk 0:02:03]}  Nxg3 {[%clk 0:01:35]} 24. hxg3 {[%clk 0:02:01]}  Rab8 {[%clk 0:01:34]} 25. Nd4 {[%clk 0:01:53]}  Rxb2 {[%clk 0:01:29]} 26. Rxe8 {[%clk 0:01:50]}  Qxe8 {[%clk 0:01:30]} 27. Qxa7+ {[%clk 0:01:49]}  Bf7 {[%clk 0:01:20]} 28. Qc5 {[%clk 0:01:33]}  Qe4 {[%clk 0:01:08]} 29. a4 {[%clk 0:01:24]}  h5 {[%clk 0:01:03]} 30. a5 {[%clk 0:01:16]}  h4 {[%clk 0:00:58]} 31. gxh4 {[%clk 0:01:16]}  gxh4 {[%clk 0:00:59]} 32. Qd6 {[%clk 0:01:08]}  c5 {[%clk 0:00:44]} 33. Nf3 {[%clk 0:00:57]}  Qe2 {[%clk 0:00:40]} 34. Rf1 {[%clk 0:00:56]}  d4 {[%clk 0:00:36]} 35. Nxh4 {[%clk 0:00:51]}  Bc4 {[%clk 0:00:35]} 36. Qg3+ {[%clk 0:00:48]}  Kf7 {[%clk 0:00:34]} 37. Ra1 {[%clk 0:00:43]}  d3 {[%clk 0:00:31]} 38. Nf5 {[%clk 0:00:33]}  d2 {[%clk 0:00:26]} 39. Ne3 {[%clk 0:00:28]}  Qe1+ {[%clk 0:00:23]} 40. Kh2 {[%clk 0:00:27]}  Qxa1 {[%clk 0:00:22]} 41. Qc7+ {[%clk 0:00:26]}  Kg6 {[%clk 0:00:22]} 42. f4 {[%clk 0:00:25]}  d1=Q {[%clk 0:00:19]} 43. f5+ {[%clk 0:00:25]}  Kh6 {[%clk 0:00:18]} 44. Ng4+ {[%clk 0:00:13]}  Kg5 {[%clk 0:00:18]} 45. Qg7+ {[%clk 0:00:11]}  Kf4 {[%clk 0:00:17]} 46. Qh6+ {[%clk 0:00:08]}  Kxg4 {[%clk 0:00:12]} 47. Qg6+ {[%clk 0:00:08]}  Kf4 {[%clk 0:00:13]} 48. Qg3+ {[%clk 0:00:08]}  Kxf5 {[%clk 0:00:13]} 49. Qh3+ {[%clk 0:00:07]}  Qg4 {[%clk 0:00:13]} 50. Qh7+ {[%clk 0:00:07]}  Qg6 {[%clk 0:00:13]} 51. Qd7+ {[%clk 0:00:08]}  Kg5 {[%clk 0:00:13]} 52. Qd2+ {[%clk 0:00:05]}  Kh5 {[%clk 0:00:13]} 53. Qd1+ {[%clk 0:00:04]}  Qxd1 {[%clk 0:00:12]} 0-1


[Site "https://www.chess.com"]